[Event "WSTCC-50 2024"]
[Site "Krakow"]
[Date "2024.07.03"]
[Round "2.2"]
[White "Paschall, William"]
[Black "Dettmann, Gerd"]
[Result "1-0"]
[ECO "A04"]
[WhiteElo "2312"]
[BlackElo "2121"]
[Annotator "TA"]
[PlyCount "217"]
[EventDate "2024.07.01"]
[EventType "team-tourn"]
[EventCountry "POL"]
[SourceTitle "playchess.com"]
[Source "ChessBase"]
[SourceQuality "1"]
[TimeControl "40/5400+30:1800+30"]

{[%evp 10,217,56,61,99,97,94,91,91,79,77,75,92,75,80,72,90,48,97,61,79,64,64,67,100,91,81,73,99,72,150,136,112,132,147,154,171,131,160,145,148,140,147,143,144,139,141,114,124,141,165,132,143,137,143,144,148,137,133,135,140,131,142,142,142,102,116,116,102,102,108,95,115,95,117,105,124,104,186,186,304,185,228,181,168,104,300,151,177,160,152,143,132,103,107,79,130,102,104,0,0,0,0,0,0,0,0,0,-9,-2,0,0,0,-12,0,-267,0,0,55,62,43,0,0,0,49,27,140,30,194,192,191,202,186,142,177,106,155,140,166,163,195,155,182,0,174,160,206,67,137,144,255,179,172,148,681,99,367,370,384,381,256,68,66,65,68,68,68,68,68,68,68,68,68,68,79,68,68,0,77,68,195,68,68,68,70,65,74,65,437,437,29964,173,29970,29971,29968,29967,29964,12832,29977,29978,29978,29979,29982,29983,29983,29981,29988,29989,29992,29992]} 1. Nf3 {[%emt 0:00:05]} c5 {[%emt 0:00:10]} 2. c4 {[%emt 0:01:31]} Nc6 {[%emt 0:00:36]} 3. Nc3 {[%emt 0:01:54]} g6 {[%emt 0:01:28]} 4. e3 {[%emt 0:01:07][%cal Be2e3,Be3e4][%mdl 32]} Bg7 {[%emt 0:02:37]} 5. d4 {[%emt 0:01:04]} Nf6 {[%emt 0:05:51]} 6. d5 {[%emt 0:04:39]} Nb4 {[%emt 0:08:29]} 7. e4 {[%emt 0:06:07]} O-O {[%emt 0:02:20]} 8. a3 {[%emt 0:01:49]} Na6 {[%emt 0:00:28] White is better.} 9. h3 {[%emt 0:04:04]} d6 {[%emt 0:01:07]} 10. Bd3 {[%emt 0:03:04]} Nc7 {[%emt 0:02:43]} 11. Bg5 {[%emt 0:03:08]} a6 {[%emt 0:00:08]} 12. a4 {[%emt 0:01:27]} e5 {[%emt 0:06:46]} 13. Nd2 {[%emt 0:08:02][%cal Bf3d2,Bd2f1,Bf1g3][%mdl 32]} Qd7 {[%emt 0:05:56]} (13... a5 $14) 14. g4 {[%emt 0:08:31]} Rb8 {[%emt 0:07:38]} 15. Nf1 {[%emt 0:03:31]} h6 {[%emt 0:05:20]} 16. Be3 {[%emt 0:04:02]} Kh7 {[%emt 0:01:54]} 17. Ng3 {[%emt 0:01:34]} Qe7 {[%emt 0:02:30]} 18. f3 {[%emt 0:01:51]} Bd7 {[%emt 0:00:35]} 19. Qe2 {[%emt 0:00:41]} Qe8 {[%emt 0:02:55]} (19... b5 $142) 20. a5 $16 {[%emt 0:01:29]} b5 {[%emt 0:01:04]} 21. axb6 {[%emt 0:00:15]} Rxb6 {[%emt 0:00:07]} 22. h4 {[%emt 0:01:33]} Ng8 {[%emt 0:08:55]} 23. Rh2 {[%emt 0:02:43]} Ne7 {[%emt 0:04:11]} 24. Qc2 {[%emt 0:02:10]} Qb8 {[%emt 0:03:33]} 25. Kf1 {[%emt 0:01:13][%cal Be1f1,Bf1g1,Bg1h1][%mdl 32]} Qb7 {[%emt 0:01:42]} 26. Kg1 {[%emt 0:01:13]} Rb8 {[%emt 0:01:04]} 27. Bc1 {[%emt 0:01:50]} Qc8 {[%emt 0:02:11]} 28. Kh1 {[%emt 0:02:30]} Ne8 {[%emt 0:01:20]} 29. Nd1 {[%emt 0:01:33]} Rb4 {[%emt 0:06:37]} 30. Bd2 {[%emt 0:02:16]} R4b6 {[%emt 0:01:16]} 31. Ba5 {[%emt 0:00:41]} Rb3 {[%emt 0:00:57]} 32. Bc3 {[%emt 0:00:29]} R3b6 {[%emt 0:00:37]} 33. Qe2 {[%emt 0:02:44]} Kg8 {[%emt 0:01:07]} 34. Ne3 {[%emt 0:04:46]} Nf6 {[%emt 0:01:11]} 35. Bc2 {[%emt 0:02:20]} Nh7 {[%emt 0:01:14]} 36. Qd1 {[%emt 0:02:38]} Nf6 {[%emt 0:03:22]} 37. Ba4 {[%emt 0:01:33]} Ne8 {[%emt 0:03:26]} 38. Bxd7 {[%emt 0:02:51]} Qxd7 {[%emt 0:00:02]} 39. Ra3 {[%emt 0:02:40]} Qc8 {[%emt 0:02:30]} 40. Qc2 {[%emt 0:01:21]} Qb7 {[%emt 0:01:05]} 41. Qa4 {[%emt 0:34:07]} Bf8 {[%emt 0:31:04]} 42. Qd1 {[%emt 0:03:58]} Rb3 {[%emt 0:00:47]} 43. Ra2 {[%emt 0:01:02]} Ng7 {[%emt 0:02:06]} (43... Nc8 $16 44. h5 Nf6) 44. Qf1 $18 {[%emt 0:00:00]} Qc8 {[%emt 0:00:00]} (44... Nc8 $142 45. h5 Ra8) 45. Qg1 {[%emt 0:00:00]} R3b6 {[%emt 0:00:00]} 46. Rf2 {[%emt 0:00:00]} Ne8 {[%emt 0:00:00]} 47. Qh2 {[%emt 0:00:00]} (47. f4 $18) 47... Ng7 $2 {[%emt 0:00:00]} (47... Bg7 $16 {keeps fighting.} 48. Rf1 Bf6) 48. Rg2 {[%emt 0:00:00]} (48. f4 $18) 48... Kh7 {[%emt 0:00:00]} 49. Qh3 {[%emt 0:00:00]} Ng8 {[%emt 0:00:00]} 50. Ra1 {[%emt 0:00:00]} Nf6 {[%emt 0:00:00]} 51. Rh2 {[%emt 0:00:00]} h5 {[%emt 0:00:00]} 52. Rf1 {[%emt 0:00:00]} a5 {[%emt 0:00:00]} 53. Ra1 {[%emt 0:00:00]} (53. Bxa5 Rxb2 54. Bd2 Ra2 $15) 53... Ra6 {[%emt 0:00:00]} 54. gxh5 {[%emt 0:00:33]} (54. Rxa5 $16 Rxa5 55. Bxa5) 54... Ngxh5 $11 {[%emt 0:00:00]} 55. Nxh5 {[%emt 0:01:13]} (55. Rxa5 $2 Rxa5 56. Bxa5 Qa6 $19 (56... Qxh3 $2 57. Rxh3 Nxg3+ 58. Rxg3 $19)) 55... Nxh5 {[%emt 0:00:00]} 56. Qxc8 {[%emt 0:00:18]} (56. Rxa5 $2 Rxa5 57. Bxa5 Qa6 $19 (57... Qxh3 $2 58. Rxh3 Rxb2 59. Kg1 $19)) 56... Rxc8 {[%emt 0:00:00]} 57. Rxa5 {[%emt 0:03:52]} (57. Bxa5 $2 Rca8 58. Rd2 Rxa5 $19) 57... Rxa5 {[%emt 0:00:00]} 58. Bxa5 {[%emt 0:00:06]} Ra8 {[%emt 0:00:00]} 59. Bc3 {[%emt 0:01:07]} Ra1+ {[%emt 0:00:00]} 60. Kg2 {[%emt 0:00:21]} Bh6 {[%emt 0:00:00]} 61. Kf2 {[%emt 0:01:41]} Rc1 {[%emt 0:02:52][%mdl 1024] Black has compensation.} 62. Ke2 $2 {[%emt 0:01:23][%mdl 8192] [#]} (62. Rg2 $11 {and White is okay.}) 62... Bf4 $2 {[%emt 0:01:34]} (62... Ng3+ $1 $19 63. Kf2 Bxe3+ 64. Kxg3 Bf4+ 65. Kh3 Bxh2 66. Kxh2 f5) 63. Rg2 {[%emt 0:01:10]} Rh1 {[%emt 0:01:03]} ({Better is} 63... Kg7 $11) 64. b4 $1 $14 {[%emt 0:00:24]} Bh6 {[%emt 0:02:31]} 65. Rf2 {[%emt 0:01:01]} cxb4 {[%emt 0:01:11]} (65... Rxh4 $2 66. bxc5 dxc5 67. Bxe5 $18) 66. Bxb4 {[%emt 0:00:24]} Bf8 {[%emt 0:00:28]} (66... Rb1 $1 $11 67. Bxd6 Nf4+ 68. Kd2 Rb2+ 69. Nc2 Nxd5+ 70. f4 Nf6 (70... Bxf4+ $2 71. Rxf4 Nxf4 72. Bxe5 $18) 71. Bxe5 Nxe4+ 72. Kc1 (72. Ke3 $2 Nxf2 73. Bxb2 Nd1+ 74. Kf3 Nxb2 $19) 72... Rb7 (72... Nxf2 73. Kxb2 Nd3+ 74. Kc3 $11)) 67. Bc3 {[%emt 0:01:02][%cal Oc4c5] c5! would now be deadly.} Rxh4 {[%emt 0:00:27]} (67... Nf4+ $11 68. Kd2 f6) 68. Kd3 {[%emt 0:00:41]} (68. c5 $1 $16 {[%cal Rc5c6] Threatens to win with c6.} Nf4+ 69. Kd2 dxc5 70. Bxe5) 68... Rh3 $2 {[%emt 0:00:30] [#]} (68... Nf4+ $11 69. Kc2 f6) 69. c5 $1 $18 {[%emt 0:00:17][%mdl 512]} dxc5 {[%emt 0:00:56]} 70. Bxe5 {[%emt 0:00:07]} f6 {[%emt 0:00:27]} 71. Bb8 {[%emt 0:00:49] And now d6 would win.} Rh1 {[%emt 0:00:54]} 72. Nc4 {[%emt 0:00:55]} (72. Rf1 $18 Rxf1 73. Nxf1) 72... Rc1 {[%emt 0:00:44]} (72... Kg8 $142 73. Ra2 g5) 73. Bh2 {[%emt 0:00:21]} g5 {[%emt 0:00:27]} 74. Ra2 {[%emt 0:00:33] Hoping for d6.} Rd1+ {[%emt 0:00:29]} 75. Ke2 {[%emt 0:00:24]} Rc1 {[%emt 0:00:30]} 76. Kd3 {[%emt 0:00:11]} Rd1+ $1 {[%emt 0:00:08]} 77. Nd2 {[%emt 0:00:40] aiming for Ra8.} Kg6 {[%emt 0:01:48]} (77... Rh1 $16 {was worth a try.}) 78. Kc4 {[%emt 0:00:49]} (78. Ra8 $18 Rh1 79. d6 Rxh2 80. Rxf8 Nf4+ 81. Kc3) 78... Rc1+ {[%emt 0:00:32]} (78... f5 $1 $14) 79. Kb5 $16 {[%emt 0:00:17]} f5 {[%emt 0:00:16]} (79... Rc3 $16 80. Ra8 Kf7 81. Ra7+ Kg6) 80. Ra6+ {[%emt 0:00:22]} Kf7 {[%emt 0:00:01]} 81. Ra7+ {[%emt 0:00:16]} (81. exf5 Rc2 82. Ne4 Rb2+ (82... Rxh2 83. d6 $14) 83. Kc6 Rxh2 $18) 81... Kg6 $2 {[%emt 0:00:05][%mdl 8192]} (81... Kg8 $16) 82. Nc4 $2 {[%emt 0:00:33]} (82. exf5+ $18 {is the precise move to win.} Kh6 83. d6) 82... Rb1+ $2 {[%emt 0:00:21][%mdl 8192]} (82... fxe4 $16 83. fxe4 g4) 83. Kc6 $18 {[%emt 0:00:17]} fxe4 {[%emt 0:00:24]} 84. fxe4 {[%emt 0:00:12] Strongly threatening Ne5+.} g4 {[%emt 0:00:13]} 85. Be5 $2 {[%emt 0:01:40]} (85. Ra8 $18 g3 86. Bxg3 (86. Rxf8 $2 gxh2 87. Ne5+ Kg7 $19) 86... Nxg3 87. Nd2 (87. Rxf8 Nxe4 88. Rf4 Nf6 $11)) 85... g3 $1 $14 {[%emt 0:00:14]} 86. Ra2 {[%emt 0:00:28] White is much more active.} Re1 {[%emt 0:00:47] [#]} 87. Bxg3 $1 {[%emt 0:00:36]} Nxg3 {[%emt 0:00:06]} 88. Rg2 {[%emt 0:00:04]} Rxe4 {[%emt 0:00:23]} 89. Rxg3+ {[%emt 0:00:05][%mdl 4096] Endgame. KRB-KRN} Kf6 {[%emt 0:00:29]} 90. Rf3+ {[%emt 0:00:14]} Kg7 $1 {[%emt 0:00:30]} 91. Nd6 {[%emt 0:01:19]} Re1 {[%emt 0:00:59]} 92. Rg3+ {[%emt 0:00:37]} (92. Kxc5 $2 Rc1+ 93. Kb5 Bxd6 $19) 92... Kf6 {[%emt 0:00:09]} 93. Rf3+ {[%emt 0:00:41]} (93. Kxc5 Rc1+ 94. Kb5 Bxd6 $19) 93... Kg7 {[%emt 0:00:18]} 94. Nf5+ {[%emt 0:00:17]} (94. Kxc5 Rc1+ 95. Kd4 Bxd6 $17) 94... Kf7 {[%emt 0:00:52]} (94... Kg8 $14) 95. Ne3+ {[%emt 0:00:24]} (95. Ne7+ $18 Ke8 (95... Kxe7 96. d6+ Ke8 97. d7+ Ke7 98. Rxf8 $18) 96. Ng6) 95... Ke8 {[%emt 0:00:42]} 96. Nc4 {[%emt 0:00:23]} Be7 {[%emt 0:01:19]} 97. Rf5 {[%emt 0:00:32]} Re2 {[%emt 0:00:58]} 98. Ne5 {[%emt 0:00:27]} Bf8 $2 {[%emt 0:01:15][%mdl 8192] [#]} ({Black should play} 98... Ra2 $14) 99. Ng6 $1 $18 {[%emt 0:00:47]} Be7 {[%emt 0:00:14]} (99... Bg7 $18 100. Nf4 (100. Kxc5 Ra2 $11) 100... Ra2) 100. Rh5 $2 {[%emt 0:00:30]} (100. Nxe7 {mates} Rxe7 101. Rh5 (101. Kxc5 Ra7 $11) 101... Kf8 102. d6 (102. Kxc5 Ke8 $18) 102... Re1 103. Rd5 (103. Kxc5 Ke8 $11) 103... Re8 104. d7 (104. Kxc5 Ra8 $18) 104... Ra8 105. Kb7 (105. d8=R+ Rxd8 106. Rxd8+ Ke7 107. Rd6 c4 108. Kd5 c3 109. Ke5 Kf7)) 100... c4 $2 {[%emt 0:00:39]} (100... Bf6 $18) 101. Rh8+ {[%emt 0:00:44]} Kf7 {[%emt 0:00:04]} 102. Nxe7 {[%emt 0:00:16] KRN-KR} c3 {[%emt 0:01:10]} 103. d6 {[%emt 0:00:31]} (103. Rh7+ $142 Kf8 104. d6 c2 105. Rh1 Re4 106. Rc1 Rc4+ 107. Kb6 Ke8 108. Nc6) 103... c2 {[%emt 0:00:12]} 104. Rh1 {[%emt 0:00:32] White mates.} Rd2 {[%emt 0:00:03]} 105. Rc1 {[%emt 0:00:25]} Ke6 {[%emt 0:00:04]} 106. Nc8 {[%emt 0:00:08]} Rh2 {[%emt 0:01:05]} 107. Re1+ {[%emt 0:00:09]} Kf7 {[%emt 0:00:16]} 108. d7 {[%emt 0:00:14]} Rh3 {[%emt 0:00:40]} 109. Nd6+ {[%emt 0:00:27] Weighted Error Value: White=0.18 (very precise) /Black=0.18 (very precise) .  Loses game:     	White=1     	Black=5      Missed win:     	White=2     	Black=1      Mistake:       	White=8     	Black=15     Inaccurate:     	White=4     	Black=1      OK:         	White=21    	Black=17     Best:        	White=7     	Black=6      Strong:       	White=2     	Black=3      Brilliant:      	White=1     	---} ({Inferior is} 109. d8=R Rc3+ 110. Kb6 c1=Q 111. Rd7+ (111. Rxc1 Rxc1 112. Kb5 Rb1+ 113. Kc4 Rb2 $14) 111... Kf6 112. Rd6+ Kg5 113. Rxc1 Rxc1 $14) 1-0

[Event "WSTCC-50 2024"]
[Site "Krakow"]
[Date "2024.07.03"]
[Round "2.2"]
[White "Jhunjhnuwala, Naresh"]
[Black "Hulme, William"]
[Result "1/2-1/2"]
[ECO "C45"]
[WhiteElo "2009"]
[BlackElo "1941"]
[Annotator "NA RC"]
[PlyCount "44"]
[EventDate "2024.07.01"]
[EventType "team-tourn"]
[EventCountry "POL"]
[SourceTitle "playchess.com"]
[Source "ChessBase"]
[SourceQuality "1"]
[TimeControl "40/5400+30:1800+30"]

1. e4 {[%emt 0:00:02]} e5 {[%emt 0:00:09]} 2. Nf3 {[%emt 0:00:07]} Nc6 {[%emt 0:00:05]} 3. d4 {[%emt 0:00:11]} exd4 {[%emt 0:00:13]} 4. Nxd4 {[%emt 0:00:06]} Nf6 {[%emt 0:00:13]} 5. Nxc6 {[%emt 0:00:08]} bxc6 {[%emt 0:00:08]} 6. e5 {[%emt 0:00:10]} Qe7 {[%emt 0:00:43]} 7. Qe2 {[%emt 0:00:18]} Nd5 {[%emt 0:00:13]} 8. h4 {[%emt 0:00:48]} d6 {[%emt 0:06:28]} 9. c4 {[%emt 0:05:21]} Ba6 {[%emt 0:01:28]} 10. exd6 {[%emt 0:07:53]} cxd6 {[%emt 0:03:00]} 11. Qxe7+ {[%emt 0:01:38]} Nxe7 {[%emt 0:00:06]} 12. b3 {[%emt 0:04:44]} Nf5 {[%emt 0:08:02]} 13. Bd3 {[%emt 0:06:03]} Bc8 {[%emt 0:00:28]} 14. g3 {[%emt 0:09:16]} Be7 {[%emt 0:02:30]} 15. Bb2 {[%emt 0:00:21]} O-O {[%emt 0:00:22]} 16. O-O {[%emt 0:01:38]} Re8 {[%emt 0:03:21]} 17. Nd2 {[%emt 0:00:13]} Bf8 {[%emt 0:02:06]} 18. Rfe1 {[%emt 0:06:04]} Bd7 {[%emt 0:02:07]} 19. Nf3 {[%emt 0:00:28]} g6 {[%emt 0:05:54]} 20. Rxe8 {[%emt 0:06:07]} Rxe8 {[%emt 0:00:11]} 21. Re1 {[%emt 0:00:23]} Rxe1+ {[%emt 0:02:45]} 22. Nxe1 {[%emt 0:00:04]} Bg7 {[%emt 0:01:14]} 1/2-1/2

[Event "WSTCC-50 2024"]
[Site "Krakow"]
[Date "2024.07.03"]
[Round "2.3"]
[White "Barron, Michael"]
[Black "Novikov, Igor"]
[Result "1/2-1/2"]
[ECO "B54"]
[WhiteElo "2046"]
[BlackElo "2509"]
[Annotator "TA"]
[PlyCount "52"]
[EventDate "2024.07.01"]
[EventType "team-tourn"]
[EventCountry "POL"]
[SourceTitle "playchess.com"]
[Source "ChessBase"]
[SourceQuality "1"]
[TimeControl "40/5400+30:1800+30"]

{[%evp 13,52,7,22,22,20,25,24,21,42,32,28,27,79,19,17,19,26,18,34,35,37,33,55,42,52,61,55,57,50,53,99,82,75,36,45,36,32,14,9,0,0]} 1. e4 {[%emt 0:00:04]} c5 {[%emt 0:00:08]} 2. Nf3 {[%emt 0:00:07]} d6 {[%emt 0:00:07]} 3. d4 {[%emt 0:00:02]} cxd4 {[%emt 0:00:07]} 4. Nxd4 {[%emt 0:00:05]} Nf6 {[%emt 0:00:07]} 5. f3 {[%emt 0:00:07]} e5 {[%emt 0:01:01]} 6. Nb3 {[%emt 0:00:03]} Be7 {[%emt 0:05:46]} 7. c4 {[%emt 0:00:23]} a5 {[%emt 0:00:40][%cal Ba7a5,Ba5a4][%mdl 32]} 8. Be3 {[%emt 0:03:49]} a4 {[%emt 0:00:54]} 9. N3d2 {[%emt 0:00:11]} Qa5 {[%emt 0:00:27]} 10. Nc3 {[%emt 0:00:30][%cal Oc4c5] White has an edge.} Bd7 {[%emt 0:05:46]} 11. Bd3 {[%emt 0:04:36]} Na6 {[%emt 0:05:02]} 12. O-O {[%emt 0:00:56]} Bd8 {[%emt 0:03:02]} (12... Nc5 $11 13. Qc2 O-O) 13. Nb5 {[%emt 0:06:08]} (13. c5 $16 {Nc4 is the strong threat.} b5 14. Qe2 (14. cxd6 Bb6 $14)) 13... Bb6 $1 $11 {[%emt 0:16:03]} 14. Qe2 {[%emt 0:03:32][%cal Oc4c5]} ({Much worse is} 14. Nxd6+ Ke7 15. c5 (15. Nxb7 $2 {too greedy.} Bxe3+ 16. Kh1 Qxd2 $19) 15... Bxc5 $15) 14... O-O {[%emt 0:11:22]} 15. Rfd1 {[%emt 0:06:12]} Bc5 {[%emt 0:14:28]} 16. Nf1 {[%emt 0:01:40]} Rfd8 {[%emt 0:01:59]} 17. Rac1 {[%emt 0:00:35]} Qb6 {[%emt 0:09:48]} 18. Kh1 {[%emt 0:02:03]} Nc7 {[%emt 0:04:13]} 19. Nxc7 {[%emt 0:02:42]} Qxc7 {[%emt 0:00:03]} 20. Bg5 {[%emt 0:00:11]} Kh8 {[%emt 0:05:07]} 21. Ne3 {[%emt 0:00:26]} Be6 {[%emt 0:00:37]} (21... Rg8 $14 {feels stronger.}) 22. Nd5 {[%emt 0:07:06]} Bxd5 {[%emt 0:00:09]} 23. exd5 {[%emt 0:00:04]} Qe7 {[%emt 0:02:31]} 24. Qe1 {[%emt 0:06:34] Threatens to win with Qh4.} h6 {[%emt 0:02:21]} 25. Bd2 {[%emt 0:02:03]} Re8 {[%emt 0:01:06]} 26. Be4 {[%emt 0:03:41]} Nxe4 {[%emt 0:02:07] Weighted Error Value: White=0.11 (very precise) /Black=0.10 (very precise) .  Mistake:       	White=1     	Black=2      Inaccurate:     	White=1     	---        OK:         	White=8     	Black=5      Best:        	---       	Black=2      Strong:       	---       	Black=1} 1/2-1/2

[Event "WSTCC-50 2024"]
[Site "Krakow"]
[Date "2024.07.03"]
[Round "2.3"]
[White "Moritz, Hartmut"]
[Black "Ginsburg, Mark"]
[Result "0-1"]
[ECO "B40"]
[WhiteElo "2002"]
[BlackElo "2272"]
[Annotator "TA"]
[PlyCount "118"]
[EventDate "2024.07.01"]
[EventType "team-tourn"]
[EventCountry "POL"]
[SourceTitle "playchess.com"]
[Source "ChessBase"]
[SourceQuality "1"]
[TimeControl "40/5400+30:1800+30"]

{[%evp 9,118,8,14,6,13,0,0,-38,-36,-56,-43,-60,-39,-62,-43,-39,-2,-47,-31,-60,-56,-59,-58,-59,-56,-56,-36,-75,-22,-15,-14,-13,-12,-14,0,-10,0,0,12,7,15,0,0,0,11,16,64,23,61,16,47,0,0,0,-16,-75,-75,-129,-113,-163,-157,-160,-160,-168,-154,-188,-178,-237,-223,-257,-252,-259,-253,-247,-202,-234,-200,-218,-222,-303,-286,-293,-278,-333,-322,-368,-304,-405,-425,-425,-425,-425,-425,-425,-387,-419,-418,-410,-400,-451,-444,-670,-664,-651,-518,-29971,-29972,-29975,-29976,-6099,-5085]} 1. e4 {[%emt 0:00:08]} c5 {[%emt 0:00:00]} 2. Nf3 {[%emt 0:00:32]} e6 {[%emt 0:00:17]} 3. c3 {[%emt 0:00:11]} d5 {[%emt 0:00:12]} 4. e5 {[%emt 0:00:08]} d4 {[%emt 0:00:29]} 5. Na3 {[%emt 0:01:36]} Nc6 {[%emt 0:00:48]} 6. b3 {[%emt 0:01:59]} Nge7 {[%emt 0:02:31]} 7. Bb2 {[%emt 0:04:31]} Ng6 {[%emt 0:04:23]} 8. Bb5 {[%emt 0:24:28] The position is equal.} Bd7 {[%emt 0:02:42]} 9. Qe2 {[%emt 0:17:51]} a6 {[%emt 0:04:31]} 10. Bd3 {[%emt 0:02:08]} Nf4 {[%emt 0:08:49][%csl LRe2,LRg2]} 11. Qe4 {[%emt 0:00:06]} Nxd3+ {[%emt 0:00:17]} (11... Nxg2+ $2 12. Kf1 $18) 12. Qxd3 {[%emt 0:00:03]} b5 {[%emt 0:01:28]} 13. Nc2 {[%emt 0:08:33][%cal Rc3d4]} dxc3 {[%emt 0:10:09]} 14. dxc3 {[%emt 0:00:32]} Be7 {[%emt 0:00:35]} 15. Rd1 {[%emt 0:01:00]} Qc7 {[%emt 0:02:23]} 16. O-O {[%emt 0:01:58]} Rd8 {[%emt 0:01:09]} (16... Nxe5 $2 17. Nxe5 Bc6 18. Qg3 $18) 17. Qe4 {[%emt 0:02:24]} O-O {[%emt 0:00:20]} 18. Ne3 {[%emt 0:01:35] [#]} c4 {[%emt 0:07:01]} 19. bxc4 $11 {[%emt 0:04:53]} Na5 {[%emt 0:03:43]} 20. cxb5 {[%emt 0:01:01]} axb5 {[%emt 0:01:23]} 21. Nd4 {[%emt 0:02:05]} Nc4 {[%emt 0:05:24]} 22. Nxc4 {[%emt 0:01:36]} Qxc4 {[%emt 0:01:25]} 23. a3 {[%emt 0:00:44]} Be8 {[%emt 0:02:53]} 24. Rfe1 {[%emt 0:06:10]} Rd5 {[%emt 0:04:22]} 25. Qd3 {[%emt 0:01:30]} Qc7 {[%emt 0:11:46]} 26. Qe4 {[%emt 0:02:18]} g6 {[%emt 0:00:51]} 27. Rd3 {[%emt 0:00:54]} Kg7 {[%emt 0:05:50]} (27... Bc6 $11) 28. Rh3 {[%emt 0:02:44][%cal Od4f5] Strongly threatening Nf5+!} h6 {[%emt 0:00:54]} 29. Qe3 {[%emt 0:01:26]} Rh8 {[%emt 0:01:33]} 30. Bc1 {[%emt 0:02:33]} (30. Rg3 $14 {feels stronger.}) 30... h5 {[%emt 0:03:21]} 31. Qf4 {[%emt 0:03:28]} h4 {[%emt 0:04:08]} 32. Rf3 {[%emt 0:01:34]} (32. Qe4 $11) 32... Rh5 $17 {[%emt 0:01:46][%cal Rh5e5] White is now going downhill.} 33. g4 {[%emt 0:01:57]} (33. h3 $142) 33... hxg3 {[%emt 0:02:49]} (33... Rdxe5 $2 {perishes.} 34. Rfe3 Bf6 (34... Rxe3 $2 35. Qxc7 Rxe1+ 36. Kg2 $18) 35. gxh5 $18) 34. Rxg3 {[%emt 0:00:29]} (34. hxg3 $17 Rdxe5 (34... Rhxe5 35. Rxe5 Qxe5 36. Kf1 $15) 35. Kg2) 34... Rdxe5 $19 {[%emt 0:01:40]} 35. Rxe5 {[%emt 0:01:42]} Qxe5 {[%emt 0:01:13]} 36. Qxe5+ {[%emt 0:00:53]} Rxe5 {[%emt 0:00:05]} 37. Kf1 {[%emt 0:00:35] Dodges Re1+} Rh5 {[%emt 0:01:01]} 38. h3 {[%emt 0:00:20]} (38. Kg1 {is a better defense.}) 38... Bd7 {[%emt 0:02:04]} 39. Kg2 {[%emt 0:00:21]} e5 {[%emt 0:00:40]} 40. Ne2 {[%emt 0:00:19]} Bc6+ {[%emt 0:01:02] This pair of bishops is nice.} 41. Kg1 {[%emt 0:04:44]} Bc5 {[%emt 0:02:16]} 42. Kf1 {[%emt 0:06:56]} Rf5 {[%emt 0:08:05]} 43. Be3 {[%emt 0:00:33]} Bxa3 {[%emt 0:00:10]} 44. Rg5 {[%emt 0:01:22]} Rxg5 {[%emt 0:01:29]} 45. Bxg5 {[%emt 0:00:03][%mdl 4096] Endgame. KBB-KBN} Bf3 {[%emt 0:02:10]} 46. Nc1 {[%emt 0:02:00]} Bd5 {[%emt 0:02:52]} 47. Be3 {[%emt 0:03:35]} f6 {[%emt 0:00:38]} 48. f4 {[%emt 0:02:30]} exf4 {[%emt 0:01:20]} 49. Bxf4 {[%emt 0:00:03]} g5 {[%emt 0:00:06]} 50. Be3 {[%emt 0:01:10]} Kg6 {[%emt 0:02:22]} 51. Kf2 {[%emt 0:00:21]} f5 {[%emt 0:01:17] And now ...f4 would win.} 52. Ne2 {[%emt 0:01:12]} Bc4 {[%emt 0:00:18]} 53. Ng1 {[%emt 0:02:33]} Be6 {[%emt 0:04:37]} 54. Bd4 {[%emt 0:02:06]} f4 {[%emt 0:02:00] Threatens to win with ...Bb2.} 55. Kf3 {[%emt 0:02:57]} (55. Bb6 $142 Be7 56. Ke2) 55... Kf5 {[%emt 0:00:08]} 56. Ke2 {[%emt 0:01:32]} Bc4+ {[%emt 0:00:47]} 57. Kf3 {[%emt 0:00:11]} (57. Kf2 $19 Bd5 58. Ke1) 57... Bb2 {[%emt 0:00:36]} 58. Ne2 {[%emt 0:03:11]} Bxe2+ {[%emt 0:00:15]} 59. Kxe2 {[%emt 0:00:02] [#]} b4 $1 {[%emt 0:00:05][%mdl 512] Weighted Error Value: White=0.38/Black=0.12 (very precise) .  Mistake:       	White=6     	Black=2      Inaccurate:     	White=8     	Black=2      OK:         	White=9     	Black=21     Best:        	White=1     	Black=4} 0-1

[Event "WSTCC-50 2024"]
[Site "Krakow"]
[Date "2024.07.03"]
[Round "2.3"]
[White "Dawson, Alastair"]
[Black "Jhunjhnuwala, Ramesh"]
[Result "1/2-1/2"]
[ECO "A38"]
[WhiteElo "1850"]
[BlackElo "2050"]
[Annotator "NA RC"]
[PlyCount "77"]
[EventDate "2024.07.01"]
[EventType "team-tourn"]
[EventCountry "POL"]
[SourceTitle "playchess.com"]
[Source "ChessBase"]
[SourceQuality "1"]
[TimeControl "40/5400+30:1800+30"]

1. Nf3 {[%emt 0:00:07]} Nf6 {[%emt 0:00:32]} 2. c4 {[%emt 0:00:14]} c5 {[%emt 0:02:16]} 3. g3 {[%emt 0:01:55]} Nc6 {[%emt 0:01:13]} 4. Bg2 {[%emt 0:00:52]} g6 {[%emt 0:02:36]} 5. Nc3 {[%emt 0:05:17]} Bg7 {[%emt 0:01:10]} 6. O-O {[%emt 0:00:31]} O-O {[%emt 0:01:39]} 7. a3 {[%emt 0:03:58]} d5 {[%emt 0:09:55]} 8. cxd5 {[%emt 0:07:25]} Nxd5 {[%emt 0:00:08]} 9. Nxd5 {[%emt 0:03:39]} Qxd5 {[%emt 0:01:29]} 10. d3 {[%emt 0:00:59]} Bg4 {[%emt 0:29:10]} 11. h3 {[%emt 0:10:10]} Bxf3 {[%emt 0:00:30]} 12. Bxf3 {[%emt 0:00:04]} Qd7 {[%emt 0:00:11]} 13. Bg2 {[%emt 0:05:55]} Rac8 {[%emt 0:04:52]} 14. Qa4 {[%emt 0:03:08]} Rfd8 {[%emt 0:06:03]} 15. Rb1 {[%emt 0:14:58]} b6 {[%emt 0:04:38]} 16. Kh2 {[%emt 0:04:47]} Nd4 {[%emt 0:02:34]} 17. Qd1 {[%emt 0:09:10]} c4 {[%emt 0:08:40]} 18. e3 {[%emt 0:02:08]} Nb3 {[%emt 0:00:39]} 19. d4 {[%emt 0:00:37]} Qf5 {[%emt 0:06:45]} 20. Bd2 {[%emt 0:04:04]} Qxb1 {[%emt 0:00:35]} 21. Qxb1 {[%emt 0:00:07]} Nxd2 {[%emt 0:00:03]} 22. Qc2 {[%emt 0:01:16]} Nxf1+ {[%emt 0:00:11]} 23. Bxf1 {[%emt 0:00:07]} e5 {[%emt 0:02:38]} 24. d5 {[%emt 0:03:29]} Rxd5 {[%emt 0:00:43]} 25. Qa4 {[%emt 0:03:12]} b5 {[%emt 0:02:41]} 26. Qxa7 {[%emt 0:00:25]} Rd2 {[%emt 0:00:53]} 27. Qb7 {[%emt 0:01:22]} Rcd8 {[%emt 0:00:43]} 28. Qxb5 {[%emt 0:00:33]} e4 {[%emt 0:01:04]} 29. a4 {[%emt 0:02:05]} Rxf2+ {[%emt 0:00:39]} 30. Kg1 {[%emt 0:03:49]} Rxb2 {[%emt 0:00:07]} 31. Qxc4 {[%emt 0:00:34]} Rd1 {[%emt 0:01:30]} 32. a5 {[%emt 0:00:24]} Rbb1 {[%emt 0:02:01]} 33. a6 {[%emt 0:00:29]} Bh6 {[%emt 0:02:10]} 34. Qc8+ {[%emt 0:01:51]} Kg7 {[%emt 0:03:05]} 35. Qc3+ {[%emt 0:00:26]} f6 {[%emt 0:01:50]} 36. Qc7+ {[%emt 0:00:12]} Kf8 {[%emt 0:00:33]} 37. Qc5+ {[%emt 0:01:36]} Kf7 {[%emt 0:00:08]} 38. Qc4+ {[%emt 0:02:06]} Kg7 {[%emt 0:00:10]} 39. Qc7+ 1/2-1/2